Cogmind - Beta 10 X2 @@@ ROGUE MODE // 2020.09.09 @ 04:06:30 // Winter2019/RPGLIKE Player: Torako Result: Escaped! Performance ------------- Evolutions (9) 4500 Regions Visited (27) 5400 Robots Destroyed (149) 745 Value Destroyed (5809) 5809 Prototype IDs (86) 1720 Alien Tech Used (7) 1400 Bonus (6650) 6650 TOTAL SCORE: 26224 Bonus ------- High Alert Combat Kills 787 Follower Combat Kills 163 Aligned with FarCom 300 Met Data Miner 300 Met Imprinter 300 Met Zhirov 300 Scanned by Researcher 500 Pursued by Intercept 1000 Win 3000 Cogmind --------- Core Integrity 347/1450 Matter 216/300 Energy 348/380 System Corruption 0% Temperature Cool (32) Movement Flying (10) Location To Epsilon Eridani Parts ------- > --- POWER (4) -------- Light Antimatter Reactor Light Antimatter Reactor Light Antimatter Reactor Light Antimatter Reactor > --- PROPULSION (9) --- Field Propulsion Drive Experimental Cesium-ion Thruster Experimental Cesium-ion Thruster Impulse Thruster Electron Diverter Cooled Impulse Thruster Cooled Q-thruster Experimental Q-thruster > --- UTILITY (7) ------ Experimental Power Amplifier Advanced Sensor Array Experimental Signal Interpreter Long-range Terrain Scanner Improved Maneuvering Thrusters Advanced Force Field Experimental Hacking Suite > --- WEAPON (3) ------- Heavy Wave Gun Sigix Broadsword > --- INVENTORY (5) ---- Advanced Energy Well (800) Improved Stasis Canceller Transdimensional Reconstructor Subatomic Replicator Force Lance Peak State ------------ > --- POWER ------------ Light Antimatter Reactor Light Antimatter Reactor Light Antimatter Reactor Light Antimatter Reactor > --- PROPULSION ------- Field Propulsion Drive Experimental Cesium-ion Thruster Experimental Cesium-ion Thruster Experimental Cesium-ion Thruster Impulse Thruster Electron Diverter Cooled Impulse Thruster Cooled Q-thruster Experimental Q-thruster > --- UTILITY ---------- Experimental Power Amplifier Advanced Sensor Array Experimental Signal Interpreter Long-range Terrain Scanner Improved Maneuvering Thrusters Advanced Force Field Experimental Hacking Suite > --- WEAPON ----------- Heavy Wave Gun Sigix Broadsword > --- INVENTORY -------- Advanced Energy Well Improved Stasis Canceller Transdimensional Reconstructor Subatomic Replicator Force Lance [Rating: 184] Favorites ----------- Power Light Fission Core Engine Light Angular Momentum Engine Power Core Light Fission Core Reactor Light Antimatter Reactor Propulsion Xenon Bombardment Thruster Flight Unit Xenon Bombardment Thruster Utility Advanced Sensor Array Device Advanced Sensor Array Storage Advanced Energy Well Processor Advanced Signal Interpreter Hackware Hacking Suite Protection Improved Medium Armor Plating Weapon Precision Beam Rifle Energy Gun Precision Beam Rifle Energy Cannon Proton Cannon Ballistic Gun Gauss Rifle Ballistic Cannon Omega Cannon Launcher Guided EMP Blaster Slashing Weapon Sigix Broadsword Piercing Weapon Force Lance Special Melee Weapon Datajack Build | -11 -10 -10 -10 -9 -8 -7 -7 -7 -7 -6 -6 -6 -6 -6 -5 -5 -5 -5 -5 -4 -4 -3 -3 -3 -2 -2 -1 ------- Run | Scr Mat Min Exi Min Mat Fac Low Low Dat Pro Fac Low Zio Dee Pro Fac Upp Upp Zhi Pro Fac Res Qua Sec Res Tes Acc Slots Evolved 18 | . . . 2 . 5 2 . 1 . 1 1 . 1 . . . . . . . 1 1 . 1 . 1 1 Power 2 | . . . . . . 1 . . . . . . . . . . . . . . . . . . . . 1 Propulsion 8 | . . . 1 . 2 . . . . . . . 1 . . . . . . . 1 1 . 1 . 1 . Utility 6 | . . . 1 . 1 1 . 1 . 1 1 . . . . . . . . . . . . . . . . Weapon 2 | . . . . . 2 . . . . . . . . . . . . . . . . . . . . . . Parts Attached 145 | 2 6 . 1 . 23 9 1 5 . 8 10 2 5 2 1 3 2 . 7 3 14 5 8 11 1 14 2 Power 14 | 1 . . . . 1 2 . 1 . . 1 . . . 1 . . . . 1 3 . 1 . . . 2 Engine 3 | 1 . . . . . 1 . . . . 1 . . . . . . . . . . . . . . . . Core 4 | . . . . . 1 1 . 1 . . . . . . 1 . . . . . . . . . . . . Reactor 7 | . . . . . . . . . . . . . . . . . . . . 1 3 . 1 . . . 2 Propulsion 26 | . 1 . 1 . 4 . . 1 . . 2 . 1 . . . . . . 2 3 1 1 5 . 4 . Treads . | . . . . . . . . . . . . . . . . . . . . . . . . . . . . Leg . | . . . . . . . . . . . . . . . . . . . . . . . . . . . . Wheel . | . . . . . . . . . . . . . . . . . . . . . . . . . . . . Hover . | . . . . . . . . . . . . . . . . . . . . . . . . . . . . Flight 26 | . 1 . 1 . 4 . . 1 . . 2 . 1 . . . . . . 2 3 1 1 5 . 4 . Utility 57 | . 1 . . . 8 3 1 2 . 6 2 2 2 . . 2 1 . 4 . 3 3 4 6 1 6 . Device 42 | . . . . . 3 2 1 2 . 5 2 2 2 . . 2 . . 2 . 1 3 3 6 1 5 . Storage 1 | . . . . . . . . . . . . . . . . . . . 1 . . . . . . . . Processor 7 | . . . . . 3 1 . . . 1 . . . . . . . . . . 1 . 1 . . . . Hackware 3 | . 1 . . . 1 . . . . . . . . . . . . . . . . . . . . 1 . Protection 4 | . . . . . 1 . . . . . . . . . . . 1 . 1 . 1 . . . . . . Artifact . | . . . . . . . . . . . . . . . . . . . . . . . . . . . . Weapon 48 | 1 4 . . . 10 4 . 1 . 2 5 . 2 2 . 1 1 . 3 . 5 1 2 . . 4 . Energy Gun 32 | 1 3 . . . 9 4 . 1 . 1 3 . 1 2 . . 1 . 3 . 1 1 . . . 1 . Energy Cannon 2 | . . . . . . . . . . . . . . . . . . . . . 1 . 1 . . . . Ballistic Gun 2 | . . . . . 1 . . . . . . . . . . 1 . . . . . . . . . . . Ballistic Cannon 1 | . . . . . . . . . . . . . . . . . . . . . . . . . . 1 . Launcher 4 | . . . . . . . . . . 1 2 . 1 . . . . . . . . . . . . . . Special Weapon . | . . . . . . . . . . . . . . . . . . . . . . . . . . . . Impact Weapon . | . . . . . . . . . . . . . . . . . . . . . . . . . . . . Slashing Weapon 4 | . . . . . . . . . . . . . . . . . . . . . 1 . 1 . . 2 . Piercing Weapon 2 | . . . . . . . . . . . . . . . . . . . . . 2 . . . . . . Special Melee Weapon 1 | . 1 . . . . . . . . . . . . . . . . . . . . . . . . . . Unidentified Prototypes 32 | . . . . . 4 2 . . . 1 2 . 1 . . . . . 4 . 1 1 5 4 . 7 . Parts Lost 4 | . . . . . . . . . . . . . . . . 1 . . . 2 . . . . . . 1 Power . | . . . . . . . . . . . . . . . . . . . . . . . . . . . . Propulsion 2 | . . . . . . . . . . . . . . . . . . . . 1 . . . . . . 1 Utility . | . . . . . . . . . . . . . . . . . . . . . . . . . . . . Weapon 2 | . . . . . . . . . . . . . . . . 1 . . . 1 . . . . . . . Highest Loss Streak 2 | . . . . . . . . . . . . . . . . 1 . . . 2 . . . . . . 1 Average Slot Usage (%) 95 | . 88 100 92 83 99 100 100 100 100 93 93 94 93 91 99 99 100 100 83 95 90 92 90 89 90 91 94 Engine 5 | . 25 25 20 16 . 6 7 7 7 6 5 5 5 5 5 5 5 5 5 5 4 . . . . . . Core 5 | . . . . . 9 7 7 7 7 6 5 5 5 5 10 11 11 11 11 10 4 . . . . . . Reactor 2 | . . . . . . . . . . . . . . . . . . . . . 5 15 15 14 14 13 15 Flight 29 | . 14 25 28 33 38 31 30 28 28 25 23 23 27 27 27 27 27 27 27 25 27 34 35 37 38 36 38 Device 19 | . . . . . 5 16 23 27 28 28 28 29 27 27 27 27 22 22 19 16 20 23 25 22 23 22 21 Processor 7 | . . . . . 7 12 7 7 7 7 11 11 11 11 11 11 11 11 11 11 10 7 5 4 4 4 4 Hackware 3 | . 24 25 20 16 4 . . . . . . . . . . . . . . . . . . . . 3 4 Protection 1 | . . . . . 5 . . . . . . . . . . . 4 5 5 5 1 . . . . . . Energy Gun 15 | . 20 25 20 16 26 24 23 21 21 18 16 17 15 10 16 15 15 16 . 13 3 . . . . 1 4 Naked Turns . | . . . . . . . . . . . . . . . . . . . . . . . . . . . . Heaviest Build 89 | 5 5 5 5 5 20 28 28 36 36 38 38 38 44 44 43 43 45 45 45 50 58 69 69 70 70 77 89 Greatest Support 101 | 8 9 9 13 13 33 33 38 39 39 39 39 39 46 46 46 46 46 46 46 52 59 69 69 87 87 101 101 Greatest Overweight (x) . | . . . . . . . . . . . . . . . . . . . . . . . . . . . . Average Overweight (x) . | . . . . . . . . . . . . . . . . . . . . . . . . . . . . Largest Inventory Capacity 5 | 4 4 4 4 4 4 4 4 4 4 4 4 4 4 4 4 4 4 4 4 4 4 4 4 4 5 5 5 Average Capacity 4 | 2 4 4 4 4 4 4 4 4 4 4 4 4 4 4 4 4 4 4 4 4 4 4 4 4 4 5 5 Most Carried 5 | 3 4 4 4 3 4 4 4 4 4 4 4 4 4 4 2 4 4 4 4 4 4 4 4 4 5 5 5 Average Carried 3 | 1 3 4 3 3 3 3 3 3 4 3 3 3 3 3 2 3 4 4 4 3 3 3 3 4 4 4 5 Final Capacity 5 | 4 4 4 4 4 4 4 4 4 4 4 4 4 4 4 4 4 4 4 4 4 4 4 4 4 5 5 5 Final Carried 5 | 3 4 4 3 3 4 4 3 4 4 2 4 4 4 2 2 4 4 4 4 4 4 4 4 4 5 5 5 Class Distribution -------------------- 59% | Generator-Scout 17% | Scout 12% | Mutant 10% | Sprinter Dominant Class ---------------- Mutant | -10/Materials Mutant | -10/Mines Mutant | -10/Exiles Mutant | -9/Mines Sprinter | -8/Materials Scout | -7/Factory Scout | -7/Lower Caves Scout | -7/Lower Caves Scout | -7/Data Miner Generator-Scout | -6/Proximity Caves Generator-Scout | -6/Factory Generator-Scout | -6/Lower Caves Generator-Scout | -6/Zion Generator-Scout | -6/Deep Caves Generator-Scout | -5/Proximity Caves Generator-Scout | -5/Factory Generator-Scout | -5/Upper Caves Generator-Scout | -5/Upper Caves Generator-Scout | -5/Zhirov Generator-Scout | -4/Proximity Caves Generator-Scout | -4/Factory Generator-Scout | -3/Research Generator-Scout | -3/Quarantine Generator-Scout | -3/Section 7 Generator-Scout | -2/Research Generator-Scout | -2/Testing Generator-Scout | -1/Access Resources | -11 -10 -10 -10 -9 -8 -7 -7 -7 -7 -6 -6 -6 -6 -6 -5 -5 -5 -5 -5 -4 -4 -3 -3 -3 -2 -2 -1 ----------- Run | Scr Mat Min Exi Min Mat Fac Low Low Dat Pro Fac Low Zio Dee Pro Fac Upp Upp Zhi Pro Fac Res Qua Sec Res Tes Acc Matter Collected 1678 | 220 60 . . 10 230 80 20 50 . 108 97 30 . 50 30 28 54 . . 100 30 . 75 82 171 37 116 Remotely . | . . . . . . . . . . . . . . . . . . . . . . . . . . . . Salvage Created 6149 | . 211 84 . 118 1538 1044 222 643 . 330 187 229 . 54 30 266 502 70 . 245 30 . 75 82 36 37 116 Parts 357 | . 18 5 . 7 83 48 3 35 . 18 24 14 . . 2 23 26 3 . 17 2 . 6 9 4 3 7 Haulers Intercepted 7 | . 1 . . . 3 2 . . . . . . . . . 1 . . . . . . . . . . . Recyclers Shooed . | . . . . . . . . . . . . . . . . . . . . . . . . . . . . Parts Field Recycled . | . . . . . . . . . . . . . . . . . . . . . . . . . . . . Retrieved Matter . | . . . . . . . . . . . . . . . . . . . . . . . . . . . . Parts Self-Destructed 112 | . . . . . . . 3 40 . 15 . 15 . . 2 . 21 3 . 13 . . . . . . . Prevented 6 | . . . . . . . . . . 1 . . . . . . 4 1 . . . . . . . . . Kills | -11 -10 -10 -10 -9 -8 -7 -7 -7 -7 -6 -6 -6 -6 -6 -5 -5 -5 -5 -5 -4 -4 -3 -3 -3 -2 -2 -1 ------- Run | Scr Mat Min Exi Min Mat Fac Low Low Dat Pro Fac Low Zio Dee Pro Fac Upp Upp Zhi Pro Fac Res Qua Sec Res Tes Acc Combat Hostiles Destroyed 112 | . 3 2 . 3 28 18 3 13 . 5 7 4 . 3 2 5 8 2 . 5 . . . . . 1 . Melee 1 | . . . . . . . . . . . . . . . . . . . . . . . . . . 1 . Guns 101 | . 3 1 . 1 27 18 2 12 . 2 7 4 . 3 2 5 8 2 . 4 . . . . . . . AOE 5 | . . . . 2 . . . . . 3 . . . . . . . . . . . . . . . . . Classes Destroyed 20 | . 5 1 . . 3 2 . 2 . . 1 . . 1 . 2 1 1 . . . . . 1 . . . Worker 2 | . . . . . 1 . . . . . . . . . . . . . . . . . . . . 1 . Builder 3 | . . . . . . 1 . . . . 1 . . . . . . . . . . . . . . 1 . Hauler 7 | . 1 . . . 3 2 . . . . . . . . . 1 . . . . . . . . . . . Recycler 1 | . 1 . . . . . . . . . . . . . . . . . . . . . . . . . . Minesweeper 1 | . . . . . . . . . . . . . . . . . 1 . . . . . . . . . . Operator 6 | . 1 . . . 3 1 . . . . 1 . . . . . . . . . . . . . . . . Drone 1 | . . . . . . . . . . . . . . . . 1 . . . . . . . . . . . Watcher 16 | . 1 . . . 3 . . . . . 2 . . . . 2 . . . . 1 . 2 1 1 . 3 Swarmer 26 | . 3 . . . 10 3 . . . 3 1 3 . . 2 1 . . . . . . . . . . . Saboteur 1 | . . . . . . . . . . . 1 . . . . . . . . . . . . . . . . Grunt 37 | . . 2 . 3 7 10 . 10 . . . . . . . 1 4 . . . . . . . . . . Brawler 4 | . . . . . . 1 . 1 . . 1 . . . . . 1 . . . . . . . . . . Duelist 2 | . . . . . . . . . . . . . . . . 1 1 . . . . . . . . . . Researcher 1 | . . . . . . . . . . . . . . . . . . . . . . . . 1 . . . Sentry 18 | . . . . . 10 2 1 . . . 4 . . . . . 1 . . . . . . . . . . Hunter 10 | . . . . . 1 2 2 . . 2 . . . . . 1 . . . 2 . . . . . . . Programmer 2 | . . . . . . . . . . . . . . . . . . 2 . . . . . . . . . Behemoth 3 | . . . . . . . . 1 . . . 1 . . . . 1 . . . . . . . . . . Tracker 1 | . . . . . . . . . . . . . . . . . . . . . . . . . . 1 . Master Thief 2 | . . . . . . . . 1 . . . . . . . . . . . 1 . . . . . . . Assembled 3 | . . . . . . . . . . . . . . 3 . . . . . . . . . . . . . Savage 2 | . . . . . . . . . . . . . . . . . . . . 2 . . . . . . . Best Kill Streak 7 | . 4 2 . 3 6 7 1 6 . 3 4 3 . 3 1 3 5 2 . 2 1 . 1 2 1 3 3 Combat Bots Only 6 | . 3 2 . 3 6 5 1 6 . 3 1 3 . 3 1 3 5 2 . 2 . . . . . 1 . Max Kills in Single Turn 2 | . 1 1 . 2 2 1 1 1 . 2 1 1 . 1 1 1 1 1 . 1 1 . 1 1 1 1 1 Gunslinging 1 | . . . . . . . . . . 1 . . . . . . . . . . . . . . . . . Exploded 2 | . . . . 2 . . . . . 2 . . . . . . . . . . . . . . . . . Melee 1 | . . . . . . . . . . . . . . . . . . . . . . . . . . 1 . Uniques/NPCs Destroyed . | . . . . . . . . . . . . . . . . . . . . . . . . . . . . Combat | -11 -10 -10 -10 -9 -8 -7 -7 -7 -7 -6 -6 -6 -6 -6 -5 -5 -5 -5 -5 -4 -4 -3 -3 -3 -2 -2 -1 -------- Run | Scr Mat Min Exi Min Mat Fac Low Low Dat Pro Fac Low Zio Dee Pro Fac Upp Upp Zhi Pro Fac Res Qua Sec Res Tes Acc Damage Taken 6401 | . 41 252 . . 974 517 62 370 . 434 328 214 . 1094 217 167 599 141 . 253 67 15 221 23 9 136 267 Core 5024 | . 31 220 . . 699 413 54 295 . 349 260 172 . 884 180 130 477 114 . 187 53 12 176 17 7 105 189 Absorbed by Shields 804 | . . . . . . 21 15 27 . 24 69 24 . . . . . . . . . 15 230 24 10 143 202 Redirected to Core 4208 | . 25 102 . . 588 344 26 264 . 299 246 154 . 802 133 130 346 94 . 139 53 12 142 17 7 96 189 Core Remaining (%) 58 | 100 . . . 88 98 . . . . 43 . . . . 28 . . . . 62 58 . . 44 . 36 23 Volleys Fired 427 | . 16 23 17 6 85 48 13 34 . 26 35 18 . 23 4 16 34 8 . 19 2 . . . . . . Largest 3 | . 1 1 1 1 3 3 3 3 . 3 3 3 . 3 3 3 3 3 . 3 2 . . . . . . Hottest 202 | . 50 40 40 40 183 183 183 183 . 197 197 197 . 197 197 197 202 202 . 202 141 . . . . . . Shots Fired 1001 | . 16 23 17 6 219 144 39 98 . 60 81 32 . 39 10 41 102 24 . 46 4 . . . . . . Gun 995 | . 16 23 17 6 219 144 39 98 . 55 81 32 . 38 10 41 102 24 . 46 4 . . . . . . Cannon . | . . . . . . . . . . . . . . . . . . . . . . . . . . . . Launcher 6 | . . . . . . . . . . 5 . . . 1 . . . . . . . . . . . . . Special . | . . . . . . . . . . . . . . . . . . . . . . . . . . . . Kinetic 6 | . . . . . . . . . . . . . . . . . 6 . . . . . . . . . . Thermal 857 | . 2 . . . 147 144 39 98 . 55 81 32 . 38 10 41 96 24 . 46 4 . . . . . . Explosive . | . . . . . . . . . . . . . . . . . . . . . . . . . . . . Electromagnetic 138 | . 14 23 17 6 72 . . . . 5 . . . 1 . . . . . . . . . . . . . Robot Hit Streak 28 | . 3 9 . 2 13 24 10 25 . 10 18 14 . 8 3 6 28 8 . 10 1 . . . . . . Robot Miss Streak 7 | . 1 5 . 2 3 2 2 2 . 3 5 7 . 3 3 4 2 2 . 3 2 . . . . . . Penetration Max . | . . . . . . . . . . . . . . . . . . . . . . . . . . . . Secondary Targets 14 | . . . . . 3 5 . 2 . 1 . . . . . . 1 1 . 1 . . . . . . . Max Gunslinging Chain 1 | . . . . . 1 1 . 1 . 1 . . . . . . 1 1 . 1 . . . . . . . Shots Hit Robots 682 | . 13 14 . 3 140 102 30 75 . 35 55 22 . 19 3 22 82 14 . 33 3 . 3 3 2 5 4 Core Hits 261 | . 8 4 . 3 54 45 7 30 . 16 18 7 . 6 2 12 21 4 . 12 1 . 2 2 2 2 3 Critical Hits 5 | . . . . . . . . . . . . . . . . . 1 . . 1 . . . . . . 3 Critical Kills 2 | . . . . . . . . . . . . . . . . . . . . . . . . . . . 2 Critical Parts Destroyed 2 | . . . . . . . . . . . . . . . . . . . . 1 . . . . . . 1 Melee Attacks 68 | . 1 . . . . . . . . . . . . . . . . . . . 3 3 14 15 12 8 12 Impact . | . . . . . . . . . . . . . . . . . . . . . . . . . . . . Slashing 20 | . . . . . . . . . . . . . . . . . . . . . . . . . . 8 12 Piercing 47 | . . . . . . . . . . . . . . . . . . . . . 3 3 14 15 12 . . Sneak Attacks 5 | . . . . . . . . . . . . . . . . . . . . . 1 . . . . 4 . Combat Hostiles 2 | . . . . . . . . . . . . . . . . . . . . . . . . . . 2 . Follow-up Attacks . | . . . . . . . . . . . . . . . . . . . . . . . . . . . . Damage Inflicted 17351 | . 160 197 . 162 2722 1939 540 1512 . 917 1662 612 . 417 49 539 2063 446 . 930 263 . 224 262 141 1157 437 Guns 14308 | . 160 197 . 54 2589 1939 540 1512 . 750 1481 612 . 415 49 539 2063 446 . 930 32 . . . . . . Cannons . | . . . . . . . . . . . . . . . . . . . . . . . . . . . . Explosions 591 | . . . . 108 133 . . . . 167 181 . . 2 . . . . . . . . . . . . . Melee 2452 | . . . . . . . . . . . . . . . . . . . . . 231 . 224 262 141 1157 437 Ramming . | . . . . . . . . . . . . . . . . . . . . . . . . . . . . Kinetic 82 | . . . . . . . . . . . . . . . . . 82 . . . . . . . . . . Thermal 13451 | . 12 . . 108 2105 1939 540 1512 . 750 1481 612 . 415 49 539 1981 446 . 930 32 . . . . . . Explosive 181 | . . . . . . . . . . . 181 . . . . . . . . . . . . . . . . Electromagnetic 1185 | . 148 197 . 54 617 . . . . 167 . . . 2 . . . . . . . . . . . . . Impact . | . . . . . . . . . . . . . . . . . . . . . . . . . . . . Slashing 1594 | . . . . . . . . . . . . . . . . . . . . . . . . . . 1157 437 Piercing 858 | . . . . . . . . . . . . . . . . . . . . . 231 . 224 262 141 . . Highest Corruption 2 | . 1 1 1 1 . . . . . . . . . . . . . 2 2 2 . . . . . . . Average Corruption 1 | . 1 1 1 1 . . . . . . . . . . . . . 1 2 2 . . . . . . . Corruption Purged . | . . . . . . . . . . . . . . . . . . . . . . . . . . . . Effects 5 | . . 1 . 1 . . . . . . . . . . . . . 1 1 1 . . . . . . . Heat Flow Errors 1 | . . . . . . . . . . . . . . . . . . . 1 . . . . . . . . Energy Discharges 1 | . . . . . . . . . . . . . . . . . . 1 . . . . . . . . . Targeting Errors 3 | . . 1 . 1 . . . . . . . . . . . . . . . 1 . . . . . . . Overload Shots . | . . . . . . . . . . . . . . . . . . . . . . . . . . . . Overflow Damage 761 | . . . . . 13 . . . . . 19 . . . . . . . . . . . 19 18 . 692 . Projectiles . | . . . . . . . . . . . . . . . . . . . . . . . . . . . . Explosions 32 | . . . . . 13 . . . . . 19 . . . . . . . . . . . . . . . . Melee 729 | . . . . . . . . . . . . . . . . . . . . . . . 19 18 . 692 . Knockbacks . | . . . . . . . . . . . . . . . . . . . . . . . . . . . . Impact . | . . . . . . . . . . . . . . . . . . . . . . . . . . . . Kinetic . | . . . . . . . . . . . . . . . . . . . . . . . . . . . . Secondary . | . . . . . . . . . . . . . . . . . . . . . . . . . . . . Self-Inflicted Damage . | . . . . . . . . . . . . . . . . . . . . . . . . . . . . Shots . | . . . . . . . . . . . . . . . . . . . . . . . . . . . . Rammed . | . . . . . . . . . . . . . . . . . . . . . . . . . . . . Targets Rammed . | . . . . . . . . . . . . . . . . . . . . . . . . . . . . Kicked . | . . . . . . . . . . . . . . . . . . . . . . . . . . . . Crushed . | . . . . . . . . . . . . . . . . . . . . . . . . . . . . Highest Temperature 451 | . 20 115 46 26 451 141 112 147 . 217 332 277 . 439 207 356 . . 189 . . . . . . . . Average Temperature 89 | . 5 57 23 14 110 37 45 65 . 88 108 114 . 138 76 187 . . 140 . . . . . . . . Received Heat Transfer 1312 | . . 144 . . 189 150 8 140 . 6 68 33 . 328 54 9 153 . . . 9 4 13 . 4 . . Effects 7 | . . . . . 1 . . . . . . . . 2 . 4 . . . . . . . . . . . Shutdowns 4 | . . . . . 1 . . . . . . . . 2 . 1 . . . . . . . . . . . Energy Bleed 1 | . . . . . . . . . . . . . . . . 1 . . . . . . . . . . . Interference 1 | . . . . . . . . . . . . . . . . 1 . . . . . . . . . . . Damage (minor) 1 | . . . . . . . . . . . . . . . . 1 . . . . . . . . . . . Siege Activations . | . . . . . . . . . . . . . . . . . . . . . . . . . . . . Robots Corrupted 1 | . . 1 . . . . . . . . . . . . . . . . . . . . . . . . . Combat Hostiles 1 | . . 1 . . . . . . . . . . . . . . . . . . . . . . . . . Parts Fried 3 | . . 1 . . 2 . . . . . . . . . . . . . . . . . . . . . . Impact Corruptions . | . . . . . . . . . . . . . . . . . . . . . . . . . . . . Robots Melted 4 | . . . . . 1 . 1 1 . . . . . . . . . . . 1 . . . . . . . Combat Hostiles 4 | . . . . . 1 . 1 1 . . . . . . . . . . . 1 . . . . . . . Parts Melted 44 | . . . . . 12 10 1 8 . . 4 1 . . . 1 1 1 . 5 . . . . . . . Heat Transferred 21007 | . 37 . . 100 3530 3774 999 2738 . 1110 2109 814 . 283 74 814 2775 555 . 1258 37 . . . . . . Parts Sabotaged . | . . . . . . . . . . . . . . . . . . . . . . . . . . . . Parts Stolen 6 | . . . . . . . 1 1 . 3 . . . . . . . . . 1 . . . . . . . Parts Stripped . | . . . . . . . . . . . . . . . . . . . . . . . . . . . . Power Chain Reactions 3 | . . . . 1 2 . . . . . . . . . . . . . . . . . . . . . . Missiles Intercepted . | . . . . . . . . . . . . . . . . . . . . . . . . . . . . Alert | -11 -10 -10 -10 -9 -8 -7 -7 -7 -7 -6 -6 -6 -6 -6 -5 -5 -5 -5 -5 -4 -4 -3 -3 -3 -2 -2 -1 ------- Run | Scr Mat Min Exi Min Mat Fac Low Low Dat Pro Fac Low Zio Dee Pro Fac Upp Upp Zhi Pro Fac Res Qua Sec Res Tes Acc Peak Influence 1019 | . 142 120 . 81 730 1019 . . . . 547 . . . . 188 . . . . 52 131 251 348 379 283 285 Average Influence 311 | . 92 95 . 56 504 745 . . . . 303 . . . . 110 . . . . 47 66 174 214 267 240 221 Maximum Alert Level 3 | . . . . . 3 3 . . . . 2 . . . . . . . . . . . 1 1 1 1 1 Low Security (%) 41 | 100 100 100 . 100 10 . . . . . 32 . . . . 100 . . . . 100 100 55 13 6 . 29 Level 1 26 | . . . . . 8 14 . . . . 28 . . . . . . . . . . . 44 86 93 100 70 Level 2 22 | . . . . . 73 23 . . . . 38 . . . . . . . . . . . . . . . . Level 3 9 | . . . . . 7 61 . . . . . . . . . . . . . . . . . . . . . Level 4 . | . . . . . . . . . . . . . . . . . . . . . . . . . . . . Level 5 . | . . . . . . . . . . . . . . . . . . . . . . . . . . . . High Security . | . . . . . . . . . . . . . . . . . . . . . . . . . . . . Max Security . | . . . . . . . . . . . . . . . . . . . . . . . . . . . . Squads Dispatched 35 | . 1 . . . 6 10 . . . . 6 . . . 1 . . . . . . . 4 1 3 3 . Investigation 8 | . 1 . . . 3 2 . . . . 1 . . . . . . . . . . . . . 1 . . Extermination . | . . . . . . . . . . . . . . . . . . . . . . . . . . . . Reinforcement 12 | . . . . . 2 1 . . . . 3 . . . . . . . . . . . 4 1 1 . . Assault 5 | . . . . . . 3 . . . . 1 . . . 1 . . . . . . . . . . . . Garrison 6 | . . . . . 1 4 . . . . 1 . . . . . . . . . . . . . . . . Intercept 4 | . . . . . . . . . . . . . . . . . . . . . . . . . 1 3 . Construction Impeded 2 | . . . . . . . . . . . 2 . . . . . . . . . . . . . . . . Haulers Reinforced . | . . . . . . . . . . . . . . . . . . . . . . . . . . . . Stealth | -11 -10 -10 -10 -9 -8 -7 -7 -7 -7 -6 -6 -6 -6 -6 -5 -5 -5 -5 -5 -4 -4 -3 -3 -3 -2 -2 -1 --------- Run | Scr Mat Min Exi Min Mat Fac Low Low Dat Pro Fac Low Zio Dee Pro Fac Upp Upp Zhi Pro Fac Res Qua Sec Res Tes Acc Distress Signals 10 | . . . . . 6 . . . . . . . . . . . . . . . . 2 1 1 . . . Communications Jammed . | . . . . . . . . . . . . . . . . . . . . . . . . . . . . Distress Signals . | . . . . . . . . . . . . . . . . . . . . . . . . . . . . Times Spotted 271 | . 8 2 . 3 46 28 4 15 . 9 18 1 . 12 31 8 11 2 . 5 5 7 24 13 10 4 5 Peak Tracking Total 12 | . 4 2 10 1 10 9 1 5 . 4 5 1 . 6 12 4 4 2 . 2 3 6 12 12 6 3 2 Tactical Retreats 22 | . . . 1 . 2 . . 1 . . 1 . . 2 5 1 2 . . . . . 4 2 1 . . Traps | -11 -10 -10 -10 -9 -8 -7 -7 -7 -7 -6 -6 -6 -6 -6 -5 -5 -5 -5 -5 -4 -4 -3 -3 -3 -2 -2 -1 ------- Run | Scr Mat Min Exi Min Mat Fac Low Low Dat Pro Fac Low Zio Dee Pro Fac Upp Upp Zhi Pro Fac Res Qua Sec Res Tes Acc Traps Triggered 12 | . 1 . . . 1 . . . . . 2 . . . . 3 . . . . 2 . 2 . . 1 . Indirectly . | . . . . . . . . . . . . . . . . . . . . . . . . . . . . Trap Hack Attempts 19 | . 19 . . . . . . . . . . . . . . . . . . . . . . . . . . Triggered . | . . . . . . . . . . . . . . . . . . . . . . . . . . . . Disarmed . | . . . . . . . . . . . . . . . . . . . . . . . . . . . . Reprogrammed 3 | . 3 . . . . . . . . . . . . . . . . . . . . . . . . . . Reused . | . . . . . . . . . . . . . . . . . . . . . . . . . . . . Traps Extracted . | . . . . . . . . . . . . . . . . . . . . . . . . . . . . Installed . | . . . . . . . . . . . . . . . . . . . . . . . . . . . . Triggered 2 | . . . . . . . . . . . . . . . . . . 2 . . . . . . . . . Machines | -11 -10 -10 -10 -9 -8 -7 -7 -7 -7 -6 -6 -6 -6 -6 -5 -5 -5 -5 -5 -4 -4 -3 -3 -3 -2 -2 -1 ---------- Run | Scr Mat Min Exi Min Mat Fac Low Low Dat Pro Fac Low Zio Dee Pro Fac Upp Upp Zhi Pro Fac Res Qua Sec Res Tes Acc Machines Disabled 19 | . . . 1 . . 3 . . . . 3 . . . . . . 1 . . . . 4 3 . 2 2 Max in Single Turn 2 | . . . 1 . . 1 . . . . 2 . . . . . . 1 . . . . 1 1 . 1 1 Garrison Access 7 | . . . . . 1 2 . . . . . . . . . . . . . . . . . 1 1 1 1 Machines Sabotaged . | . . . . . . . . . . . . . . . . . . . . . . . . . . . . Garrisons Compromised . | . . . . . . . . . . . . . . . . . . . . . . . . . . . . Overloaded Fab Kills . | . . . . . . . . . . . . . . . . . . . . . . . . . . . . Fab Network Shutdowns . | . . . . . . . . . . . . . . . . . . . . . . . . . . . . Hacking | -11 -10 -10 -10 -9 -8 -7 -7 -7 -7 -6 -6 -6 -6 -6 -5 -5 -5 -5 -5 -4 -4 -3 -3 -3 -2 -2 -1 --------- Run | Scr Mat Min Exi Min Mat Fac Low Low Dat Pro Fac Low Zio Dee Pro Fac Upp Upp Zhi Pro Fac Res Qua Sec Res Tes Acc Machines Accessed 72 | . 7 . 1 . 9 4 . 1 4 . 5 . 1 . . 2 . 1 9 1 3 5 5 5 5 2 2 Terminals 44 | . 7 . . . 8 2 . . . . 4 . . . . 2 . . . 1 2 4 5 4 3 1 1 Fabricators 5 | . . . . . . 1 . . . . 1 . . . . . . . . . 1 1 . . 1 . . Repair Stations . | . . . . . . . . . . . . . . . . . . . . . . . . . . . . Recycling Units . | . . . . . . . . . . . . . . . . . . . . . . . . . . . . Scanalyzers . | . . . . . . . . . . . . . . . . . . . . . . . . . . . . Garrison Access 6 | . . . . . 1 1 . . . . . . . . . . . . . . . . . 1 1 1 1 Total Hacks 211 | . 18 . 1 . 21 9 . 1 28 . 13 . 5 . . 3 . 1 48 1 13 10 10 10 13 4 2 Successful 155 | . 13 . 1 . 9 4 . 1 28 . 10 . 5 . . 1 . 1 48 1 10 4 5 7 3 3 1 Failed 56 | . 5 . . . 12 5 . . . . 3 . . . . 2 . . . . 3 6 5 3 10 1 1 Catastrophic 10 | . . . . . 3 1 . . . . 1 . . . . 1 . . . . . 2 . 1 . . 1 Database Lockouts . | . . . . . . . . . . . . . . . . . . . . . . . . . . . . Manual 42 | . 11 . 1 . 8 . . . . . . . 4 . . 1 . . . . . 1 5 6 3 1 1 Terminals 105 | . 18 . . . 20 3 . . . . 10 . . . . 3 . . . 1 10 8 10 9 9 3 1 Fabricators 14 | . . . . . . 4 . . . . 3 . . . . . . . . . 3 2 . . 2 . . Repair Stations . | . . . . . . . . . . . . . . . . . . . . . . . . . . . . Recycling Units . | . . . . . . . . . . . . . . . . . . . . . . . . . . . . Scanalyzers . | . . . . . . . . . . . . . . . . . . . . . . . . . . . . Garrison Access 8 | . . . . . 1 2 . . . . . . . . . . . . . . . . . 1 2 1 1 Terminal Hacks 126 | . 5 . 1 . 6 2 . 1 28 . 7 . 5 . . 1 . 1 48 1 8 3 3 3 1 2 . Record 52 | . . . . . . . . . 11 . . . . . . . . 1 36 1 . . 3 . . . . Part Schematic 17 | . . . . . . 1 . . 7 . . . 5 . . . . . 4 . . . . . . . . Robot Schematic 7 | . . . . . . . . . 7 . . . . . . . . . . . . . . . . . . Robot Analysis 6 | . . . . . 1 . . . . . . . . . . . . . 4 . . 1 . . . . . Prototype ID Bank 15 | . 2 . . . 1 . . . 3 . 2 . . . . . . . 4 . 2 1 . . . . . Open Door 1 | . . . . . . . . 1 . . . . . . . . . . . . . . . . . . . Level Access Points 2 | . . . . . . . . . . . . . . . . . . . . . . . . 1 . 1 . Branch Access Points 7 | . . . . . 1 1 . . . . . . . . . 1 . . . . 1 1 . . 1 1 . Unreport Threat 7 | . . . . . 1 . . . . . 4 . . . . . . . . . 2 . . . . . . Locate Traps 2 | . 1 . . . . . . . . . . . . . . . . . . . . . . 1 . . . Hauler Manifests 3 | . . . . . 1 . . . . . 1 . . . . . . . . . 1 . . . . . . Registered Components 1 | . . . . . 1 . . . . . . . . . . . . . . . . . . . . . . Registered Prototypes 1 | . . . . . . . . . . . . . . . . . . . . . . . . 1 . . . Zone Layout 4 | . 2 . . . . . . . . . . . . . . . . . . . 2 . . . . . . EX-Prototype ID Bank 1 | . . . 1 . . . . . . . . . . . . . . . . . . . . . . . . Fabricator Hacks 8 | . . . . . . 2 . . . . 3 . . . . . . . . . 2 1 . . . . . Load Schematic 4 | . . . . . . 1 . . . . 1 . . . . . . . . . 1 1 . . . . . Build 4 | . . . . . . 1 . . . . 2 . . . . . . . . . 1 . . . . . . Repair Station Hacks . | . . . . . . . . . . . . . . . . . . . . . . . . . . . . Recycling Unit Hacks . | . . . . . . . . . . . . . . . . . . . . . . . . . . . . Scanalyzer . | . . . . . . . . . . . . . . . . . . . . . . . . . . . . Garrison Access Hacks 5 | . . . . . 1 . . . . . . . . . . . . . . . . . . 1 1 1 1 Seal Access 5 | . . . . . 1 . . . . . . . . . . . . . . . . . . 1 1 1 1 Unauthorized Hacks 15 | . 7 . . . 2 . . . . . . . . . . . . . . . . . 2 3 1 . . Terminals 15 | . 7 . . . 2 . . . . . . . . . . . . . . . . . 2 3 1 . . Track 4 | . 4 . . . . . . . . . . . . . . . . . . . . . . . . . . Assimilate 4 | . . . . . 1 . . . . . . . . . . . . . . . . . 2 . 1 . . Botnet 5 | . 2 . . . . . . . . . . . . . . . . . . . . . . 3 . . . Search 2 | . 1 . . . 1 . . . . . . . . . . . . . . . . . . . . . . Fabricators . | . . . . . . . . . . . . . . . . . . . . . . . . . . . . Repair Stations . | . . . . . . . . . . . . . . . . . . . . . . . . . . . . Recycling Units . | . . . . . . . . . . . . . . . . . . . . . . . . . . . . Scanalyzers . | . . . . . . . . . . . . . . . . . . . . . . . . . . . . Garrison Access . | . . . . . . . . . . . . . . . . . . . . . . . . . . . . Data Cores Recovered 4 | . 1 . . . 2 . . . . . 1 . . . . . . . . . . . . . . . . Used 4 | . 1 . . . 2 . . . . . 1 . . . . . . . . . . . . . . . . Hacking Detections 35 | . 4 . . . 7 2 . . . . 5 . . . . 2 . . . . 1 3 3 2 4 1 1 Full Trace Events 7 | . 2 . . . 1 2 . . . . 1 . . . . . . . . . . . . . 1 . . Feedback Events . | . . . . . . . . . . . . . . . . . . . . . . . . . . . . Feedback Blocked . | . . . . . . . . . . . . . . . . . . . . . . . . . . . . Robot Schematics Acquired 7 | . . . . . . . . . 7 . . . . . . . . . . . . . . . . . . Robots Built . | . . . . . . . . . . . . . . . . . . . . . . . . . . . . Matter . | . . . . . . . . . . . . . . . . . . . . . . . . . . . . Time . | . . . . . . . . . . . . . . . . . . . . . . . . . . . . Total Robot Build Rating . | . . . . . . . . . . . . . . . . . . . . . . . . . . . . Part Schematics Acquired 17 | . . . . . . 1 . . 7 . . . 5 . . . . . 4 . . . . . . . . Parts Built 5 | . . . . . . 2 . . . . 2 . . . . . . . . . 1 . . . . . . Matter 1166 | . . . . . . 212 . . . . 636 . . . . . . . . . 318 . . . . . . Time 390 | . . . . . . 53 . . . . 168 . . . . . . . . . 169 . . . . . . Total Part Build Rating 30 | . . . . . . 12 . . . . 12 . . . . . . . . . 6 . . . . . . Parts Repaired . | . . . . . . . . . . . . . . . . . . . . . . . . . . . . Time . | . . . . . . . . . . . . . . . . . . . . . . . . . . . . Parts Recycled . | . . . . . . . . . . . . . . . . . . . . . . . . . . . . Recycled Matter . | . . . . . . . . . . . . . . . . . . . . . . . . . . . . Retrieved Matter . | . . . . . . . . . . . . . . . . . . . . . . . . . . . . Retrieved Components . | . . . . . . . . . . . . . . . . . . . . . . . . . . . . Parts Scanalyzed . | . . . . . . . . . . . . . . . . . . . . . . . . . . . . Part Schematics Acquired . | . . . . . . . . . . . . . . . . . . . . . . . . . . . . Parts Damaged . | . . . . . . . . . . . . . . . . . . . . . . . . . . . . Bothacking | -11 -10 -10 -10 -9 -8 -7 -7 -7 -7 -6 -6 -6 -6 -6 -5 -5 -5 -5 -5 -4 -4 -3 -3 -3 -2 -2 -1 ------------ Run | Scr Mat Min Exi Min Mat Fac Low Low Dat Pro Fac Low Zio Dee Pro Fac Upp Upp Zhi Pro Fac Res Qua Sec Res Tes Acc Used RIF Installer . | . . . . . . . . . . . . . . . . . . . . . . . . . . . . Robots Hacked 1 | . 1 . . . . . . . . . . . . . . . . . . . . . . . . . . Non-combat 1 | . 1 . . . . . . . . . . . . . . . . . . . . . . . . . . Combat . | . . . . . . . . . . . . . . . . . . . . . . . . . . . . Robot Hacks Applied 1 | . 1 . . . . . . . . . . . . . . . . . . . . . . . . . . parse_system 1 | . 1 . . . . . . . . . . . . . . . . . . . . . . . . . . Relay Couplers Released . | . . . . . . . . . . . . . . . . . . . . . . . . . . . . Robots Rewired . | . . . . . . . . . . . . . . . . . . . . . . . . . . . . Allies Hacked . | . . . . . . . . . . . . . . . . . . . . . . . . . . . . Hacks Repelled . | . . . . . . . . . . . . . . . . . . . . . . . . . . . . Allies | -11 -10 -10 -10 -9 -8 -7 -7 -7 -7 -6 -6 -6 -6 -6 -5 -5 -5 -5 -5 -4 -4 -3 -3 -3 -2 -2 -1 -------- Run | Scr Mat Min Exi Min Mat Fac Low Low Dat Pro Fac Low Zio Dee Pro Fac Upp Upp Zhi Pro Fac Res Qua Sec Res Tes Acc Total Allies 9 | . . . . 5 1 . . . . 1 . . . . . . . . . . . . 2 . . . . Largest Group 5 | . . . . 5 5 . . . . 1 1 . . . . . . . . . . . 1 . . . . Highest-Rated Group 94 | . . . . 83 83 . . . . 94 94 . . . . . . . . . . . 26 . . . . Highest-Rated Ally 94 | . . . . 31 31 . . . . 94 94 . . . . . . . . . . . 26 . . . . Total Orders . | . . . . . . . . . . . . . . . . . . . . . . . . . . . . Ally Attacks 81 | . . . . . 53 . . . . 13 15 . . . . . . . . . . . . . . . . Total Damage 1534 | . . . . . 681 . . . . 287 566 . . . . . . . . . . . . . . . . Kills 12 | . . . . . 6 . . . . 2 4 . . . . . . . . . . . . . . . . Allies Corrupted . | . . . . . . . . . . . . . . . . . . . . . . . . . . . . Allies Melted . | . . . . . . . . . . . . . . . . . . . . . . . . . . . . Intel | -11 -10 -10 -10 -9 -8 -7 -7 -7 -7 -6 -6 -6 -6 -6 -5 -5 -5 -5 -5 -4 -4 -3 -3 -3 -2 -2 -1 ------- Run | Scr Mat Min Exi Min Mat Fac Low Low Dat Pro Fac Low Zio Dee Pro Fac Upp Upp Zhi Pro Fac Res Qua Sec Res Tes Acc Robot Analysis Total 6 | . . . . . 1 . . . . . . . . . . . . . 4 . . 1 . . . . . Derelict Logs Recovered 9 | . . . . 1 . . 1 2 . . . 1 . . . . 1 2 . 1 . . . . . . . Drone Launches . | . . . . . . . . . . . . . . . . . . . . . . . . . . . . Drone Recoveries . | . . . . . . . . . . . . . . . . . . . . . . . . . . . . Exploration | -11 -10 -10 -10 -9 -8 -7 -7 -7 -7 -6 -6 -6 -6 -6 -5 -5 -5 -5 -5 -4 -4 -3 -3 -3 -2 -2 -1 ------------- Run | Scr Mat Min Exi Min Mat Fac Low Low Dat Pro Fac Low Zio Dee Pro Fac Upp Upp Zhi Pro Fac Res Qua Sec Res Tes Acc Turns Passed 6281 | 32 255 154 156 110 723 471 258 351 27 287 548 162 169 143 313 187 294 110 56 228 293 66 211 315 191 107 64 Spaces Moved 12248 | 52 429 231 306 199 1029 792 680 672 86 476 859 358 538 381 535 360 499 346 174 456 343 265 646 431 441 472 192 Core 162 | 52 110 . . . . . . . . . . . . . . . . . . . . . . . . . . Treads . | . . . . . . . . . . . . . . . . . . . . . . . . . . . . Legs . | . . . . . . . . . . . . . . . . . . . . . . . . . . . . Wheels . | . . . . . . . . . . . . . . . . . . . . . . . . . . . . Hover . | . . . . . . . . . . . . . . . . . . . . . . . . . . . . Flight 12086 | . 319 231 306 199 1029 792 680 672 86 476 859 358 538 381 535 360 499 346 174 456 343 265 646 431 441 472 192 Fastest Speed 10 | 50 40 40 37 37 31 31 31 31 31 31 23 23 22 22 22 22 22 22 22 22 17 15 15 12 12 10 10 Average Speed 25 | 50 42 40 39 37 31 31 31 31 31 31 27 23 22 22 22 22 22 22 22 22 20 15 15 12 12 11 11 Slowest Speed 50 | 50 50 40 40 37 37 31 31 31 31 31 31 23 23 22 22 22 22 22 22 23 22 17 15 15 12 16 16 Overloaded Moves . | . . . . . . . . . . . . . . . . . . . . . . . . . . . . Propulsion Burnouts . | . . . . . . . . . . . . . . . . . . . . . . . . . . . . Robots Hopped 61 | . 4 7 . 1 8 7 . . . . 5 . . 1 1 3 1 . . . . 5 4 1 11 2 . Cave-ins Triggered . | . . . . . . . . . . . . . . . . . . . . . . . . . . . . Exploration Rate (%) 50 | 3 83 64 70 43 85 17 90 87 70 59 23 66 86 55 64 10 66 55 63 53 12 17 82 28 18 34 8 Regions Visited 27 Branch Regions 18 Pre-discovered Areas 10 | . . . . 1 . . 1 . 1 . . . 2 . . . . 1 3 1 . . . . . . . Known Exits Taken 22 | . . . . . 1 1 1 1 1 1 1 1 1 1 1 1 1 1 1 1 1 1 1 1 1 1 . Unknown Exits Taken 5 | 1 1 1 1 1 . . . . . . . . . . . . . . . . . . . . . . . Scrap Searched 14 | . . . . . . . 2 5 . 1 . 1 1 . . . 1 1 . 2 . . . . . . . Spaces Dug 25 | . . . . . . . . 1 . 1 . . . 1 1 . . . . . . 1 6 8 6 . . Terrain Destroyed 133 | . . . . . 9 . . 2 . 13 47 8 . 1 4 5 9 6 . 7 1 1 6 8 6 . . Melee 21 | . . . . . . . . . . . . . . . . . . . . . . 1 6 8 6 . . Projectile 63 | . . . . . . . . 2 . 13 7 8 . 1 4 5 9 6 . 7 1 . . . . . . AOE 49 | . . . . . 9 . . . . . 40 . . . . . . . . . . . . . . . . Actions | -11 -10 -10 -10 -9 -8 -7 -7 -7 -7 -6 -6 -6 -6 -6 -5 -5 -5 -5 -5 -4 -4 -3 -3 -3 -2 -2 -1 --------- Run | Scr Mat Min Exi Min Mat Fac Low Low Dat Pro Fac Low Zio Dee Pro Fac Upp Upp Zhi Pro Fac Res Qua Sec Res Tes Acc Total 14452 | 56 478 261 325 227 1244 903 696 741 85 565 1113 418 590 414 722 437 607 361 190 541 557 281 726 657 543 506 208 Wait 1138 | . 4 11 . 20 38 24 3 3 . 46 172 19 36 9 177 14 45 . . 43 146 3 34 188 99 2 2 Move 12101 | 51 420 218 305 196 1012 777 679 671 85 475 848 357 537 378 532 353 496 345 173 455 342 254 637 428 419 467 191 Hop 58 | . 4 5 . 1 8 7 . . . . 5 . . 1 1 3 1 . . . . 5 4 1 10 2 . Pick Up 52 | 3 4 . 1 . 11 4 . 3 . 2 2 4 5 . . 3 . 1 1 1 . 4 1 . 1 1 . Fast Attach 107 | 2 3 . . . 13 7 . 1 . 7 7 2 1 . 1 2 2 . 8 2 12 2 9 13 . 12 1 Attach 20 | . . . 1 . 3 2 . 1 . . 1 . 4 2 . . . . . . 1 2 1 . . 2 . Detach 20 | . . . . . 4 3 . . . . 2 . 2 . . . . . . . 3 2 2 . . 2 . Swap 25 | . 3 . . . 7 . 1 3 . 2 2 . . . . 1 . . . 1 1 1 . 1 1 . 1 Drop 121 | . 4 . 1 . 19 7 . 5 . 5 8 6 5 1 . 3 2 1 8 2 11 5 6 10 1 10 1 Fire 427 | . 16 23 17 6 85 48 13 34 . 26 35 18 . 23 4 16 34 8 . 19 2 . . . . . . Melee 68 | . 1 . . . . . . . . . . . . . . . . . . . 3 3 14 15 12 8 12 Ram . | . . . . . . . . . . . . . . . . . . . . . . . . . . . . Kick . | . . . . . . . . . . . . . . . . . . . . . . . . . . . . Crush . | . . . . . . . . . . . . . . . . . . . . . . . . . . . . Escape Stasis 86 | . . . . . . . . . . . . . . . . 31 . . . . 36 . 18 1 . . . Rewire 5 | . . . . . . . . . . . . . . . 5 . . . . . . . . . . . . Trap 19 | . 19 . . . . . . . . . . . . . . . . . . . . . . . . . . Miscellaneous 205 | . . 4 . 4 44 24 . 20 . 2 31 12 . . 2 11 27 6 . 18 . . . . . . . Route ------- -11/Scrapyard -10/Materials (discovered 3 exits: [*Mat x2] / [*Min]) -10/Mines (discovered 3 exits: [*Mat x2] / *Exi) -10/Exiles -9/Mines (discovered 2 exits: *Mat x2) -8/Materials (discovered 3 exits: *Fac x3) -7/Factory (discovered 3 exits: *Fac / *Low x2) -7/Lower Caves -7/Lower Caves (discovered 2 exits: *Fac / *Dat) -7/Data Miner -6/Proximity Caves -6/Factory (discovered 3 exits: *Fac x2 / *Low) -6/Lower Caves -6/Zion (discovered 2 exits: *Dee / [*Pro]) -6/Deep Caves -5/Proximity Caves -5/Factory (discovered 3 exits: Fac / *Upp x2) -5/Upper Caves -5/Upper Caves -5/Zhirov -4/Proximity Caves -4/Factory (discovered 3 exits: *Res / Upp x2) -3/Research (discovered 3 exits: Arm / *Qua x2) -3/Quarantine (discovered 2 exits: *Res / *Sec) -3/Section 7 -2/Research (discovered 2 exits: *Tes x2) -2/Testing -1/Access To Epsilon Eridani History --------- Turn | Location | Event 7 | -11/Scrapyard | Discovered new exit (range 15) 33 | -11/Scrapyard | Entered Materials 183 | -10/Materials | Discovered new exit (range 15) 237 | -10/Materials | Discovered new exit (range 9) 251 | -10/Materials | Discovered new exit (range 15) 288 | -10/Materials | Entered Mines 290 | -10/Mines | Discovered new exit (range 9) 307 | -10/Mines | Build established: Mutant 311 | -10/Mines | Discovered new exit (range 12) 312 | -10/Mines | Met a Derelict bent on vengeance 438 | -10/Mines | Assembled infested the area 440 | -10/Mines | Deemed a non-threat by the Exiles lab entrance 440 | -10/Mines | Discovered new exit (range 5) 442 | -10/Mines | Entered Exiles 453 | -10/Exiles | Met 8R-AWN 459 | -10/Exiles | Met EX-HEX 470 | -10/Exiles | Met EX-BIN 475 | -10/Exiles | Reached level 2 475 | -10/Exiles | Aligned with FarCom system 475 | -10/Exiles | Given EX-Vault access code 485 | -10/Exiles | Opened EX-Vault 487 | -10/Exiles | Found Superbattery 496 | -10/Exiles | Warned to stay clear of 0b10 Research branches 507 | -10/Exiles | Met EX-DEC 526 | -10/Exiles | Upgraded with Propulsion slot (x1) 526 | -10/Exiles | Upgraded with Utility slot (x1) 583 | -10/Exiles | Attacked by the Exiles 595 | -10/Exiles | Discovered new exit (range 10) 598 | -10/Exiles | Left Exiles lab with Superbattery 598 | -10/Exiles | Entered Mines 604 | -9/Mines | Discovered new exit (range 4) 619 | -9/Mines | Assisted by bots powering up and referring to "LRC-V3" 673 | -9/Mines | Discovered new exit (range 7) 674 | -9/Mines | Learned location of Storage (-9) 708 | -9/Mines | Entered Materials 708 | -8/Materials | Accompanied by 5 allies 709 | -8/Materials | Identified exit to Factory 710 | -8/Materials | Reached level 3 715 | -8/Materials | Led the pair of lost Derelicts to an unsafe place 719 | -8/Materials | Upgraded with Weapon slot (x1) 748 | -8/Materials | Upgraded with Propulsion slot (x1) 758 | -8/Materials | Garrison activated, responded to threat 762 | -8/Materials | Reached level 4 779 | -8/Materials | Upgraded with Propulsion slot (x1) 849 | -8/Materials | Reached level 5 915 | -8/Materials | Upgraded with Weapon slot (x1) 967 | -8/Materials | Discovered exit to Factory (range 9) 1072 | -8/Materials | Build established: Sprinter 1167 | -8/Materials | Reached level 6 1179 | -8/Materials | Upgraded with Utility slot (x1) 1311 | -8/Materials | Discovered exit to Factory (range 4) 1431 | -8/Materials | Entered Factory 1433 | -7/Factory | Reached level 7 1491 | -7/Factory | Reached level 8 1522 | -7/Factory | Upgraded with Power slot (x1) 1605 | -7/Factory | Reached level 9 1611 | -7/Factory | Garrison activated, responded to threat 1617 | -7/Factory | Upgraded with Utility slot (x1) 1710 | -7/Factory | Discovered new exit (range 15) 1715 | -7/Factory | Identified exit to Factory 1735 | -7/Factory | Build established: Scout 1746 | -7/Factory | Identified exit to Lower Caves 1777 | -7/Factory | Reached level 10 1821 | -7/Factory | Fabricated Lance (x2) 1831 | -7/Factory | First assault squad dispatched 1902 | -7/Factory | Entered Lower Caves 1904 | -7/Lower Caves | Reached level 11 1957 | -7/Lower Caves | Attracted the attention of an 0b10 checkpoint 1974 | -7/Lower Caves | Learned location of Zion (-6) 2107 | -7/Lower Caves | Spotted VM-PRB(f) 2108 | -7/Lower Caves | Encountered a Master Thief 2111 | -7/Lower Caves | Discovered new exit (range 15) 2124 | -7/Lower Caves | Superbattery stolen by Master Thief 2155 | -7/Lower Caves | Identified exit to Lower Caves 2160 | -7/Lower Caves | Entered another Lower Caves area 2160 | -7/Lower Caves | Spotted B-75 Beast 2167 | -7/Lower Caves | Discovered exit to Factory (range 17) 2215 | -7/Lower Caves | Reached level 12 2232 | -7/Lower Caves | Upgraded with Utility slot (x1) 2261 | -7/Lower Caves | Destroyed B-75 Beast 2280 | -7/Lower Caves | Spotted BR-K6T(f) 2281 | -7/Lower Caves | Encountered a Master Thief 2283 | -7/Lower Caves | Lance stolen by Master Thief 2285 | -7/Lower Caves | Spotted 70-CK1(f) 2286 | -7/Lower Caves | Encountered a Master Thief 2293 | -7/Lower Caves | Destroyed 70-CK1(f) 2367 | -7/Lower Caves | Encountered a Warlord checkpoint 2403 | -7/Lower Caves | Learned Factory terminal intel 2472 | -7/Lower Caves | Discovered new exit (range 4) 2472 | -7/Lower Caves | Identified exit to Data Miner 2511 | -7/Lower Caves | Entered Data Miner 2511 | -7/Data Miner | Discovered new exit (range 6) 2517 | -7/Data Miner | Met Data Miner 2517 | -7/Data Miner | Reached level 13 2524 | -7/Data Miner | Learned location of Section 7 (-3) 2524 | -7/Data Miner | Acquired the access code to Warlord's prototype stash 2529 | -7/Data Miner | Received God Mode back door access code from Data Miner 2538 | -7/Data Miner | Identified exit to Proximity Caves 2538 | -7/Data Miner | Entered Proximity Caves 2545 | -6/Proximity Caves | Found Alien Artifact 2545 | -6/Proximity Caves | Identified Core Expander 2545 | -6/Proximity Caves | Installed Core Expander, added new Power slot 2587 | -6/Proximity Caves | Escorted by Enhanced Grunt 2605 | -6/Proximity Caves | Upgraded with Utility slot (x1) 2647 | -6/Proximity Caves | Discovered exit to Factory (range 22) 2676 | -6/Proximity Caves | Reached level 14 2677 | -6/Proximity Caves | Core integrity fell below 50% 2697 | -6/Proximity Caves | Spotted YE-Q4B(f) 2699 | -6/Proximity Caves | Encountered a Master Thief 2701 | -6/Proximity Caves | Master Tearclaws stolen by Master Thief 2739 | -6/Proximity Caves | Spotted IE-WHT(f) 2740 | -6/Proximity Caves | Encountered a Master Thief 2740 | -6/Proximity Caves | Phase Shifter stolen by Master Thief 2742 | -6/Proximity Caves | Spotted 1E-22S(f) 2743 | -6/Proximity Caves | Encountered a Master Thief 2751 | -6/Proximity Caves | Imp. Particle Charger stolen by Master Thief 2754 | -6/Proximity Caves | Allies destroyed 1E-22S(f) 2825 | -6/Proximity Caves | Entered Factory 2825 | -6/Factory | Accompanied by 1 ally 2826 | -6/Factory | Identified exit to Lower Caves 2826 | -6/Factory | Core integrity fell below 50% 2827 | -6/Factory | Loaded intel: 22 terminal locations 2827 | -6/Factory | Reached level 15 2830 | -6/Factory | Upgraded with Utility slot (x1) 2868 | -6/Factory | Build established: Generator-Scout 2980 | -6/Factory | Incoming investigation squad redirected 2986 | -6/Factory | Discovered new exit (range 22) 3014 | -6/Factory | Reached level 16 3036 | -6/Factory | Garrison activated, responded to threat 3151 | -6/Factory | Discovered new exit (range 14) 3156 | -6/Factory | Fabricated Exp. Cesium-ion Thruster (x1) 3175 | -6/Factory | First assault squad dispatched 3242 | -6/Factory | Fabricated Exp. Cesium-ion Thruster (x1) 3268 | -6/Factory | Identified exit to Factory 3373 | -6/Factory | Entered Lower Caves 3418 | -6/Lower Caves | Spotted B-75 Beast 3453 | -6/Lower Caves | Reached level 17 3453 | -6/Lower Caves | Destroyed B-75 Beast 3475 | -6/Lower Caves | A Derelict revealed a hidden shortcut to a safe place 3480 | -6/Lower Caves | Identified exit to Zion 3520 | -6/Lower Caves | Learned Factory emergency access door positions 3535 | -6/Lower Caves | Entered Zion 3536 | -6/Zion | Upgraded with Propulsion slot (x1) 3540 | -6/Zion | Acquired unknown access codes intercepted by a Zionite 3546 | -6/Zion | Received a visual enhancement algorithm 3549 | -6/Zion | Discovered new exit (range 11) 3608 | -6/Zion | Learned location of Armory (-3) 3627 | -6/Zion | Learned Factory emergency access door positions 3660 | -6/Zion | Given the Hacking Drone Bay 3660 | -6/Zion | Found Prototype Device 3676 | -6/Zion | Identified Hacking Drone Bay 3683 | -6/Zion | Discovered new exit (range 23) 3698 | -6/Zion | Opened final containment barrier to the Deep Caves 3702 | -6/Zion | Saw the warning signs outside the Deep Caves entrance 3702 | -6/Zion | Identified exit to Deep Caves 3704 | -6/Zion | Entered Deep Caves 3774 | -6/Deep Caves | Attacked by Z-Imprinter 3790 | -6/Deep Caves | Core integrity fell below 20% 3815 | -6/Deep Caves | Discovered new exit (range 6) 3847 | -6/Deep Caves | Identified exit to Proximity Caves 3847 | -6/Deep Caves | Entered Proximity Caves 3849 | -5/Proximity Caves | Reached level 18 4077 | -5/Proximity Caves | Attracted the attention of an 0b10 outpost 4156 | -5/Proximity Caves | Discovered exit to Factory (range 20) 4160 | -5/Proximity Caves | Entered Factory 4161 | -5/Factory | Core integrity fell below 50% 4162 | -5/Factory | Reached level 19 4241 | -5/Factory | Discovered new exit (range 16) 4243 | -5/Factory | Identified exit to Upper Caves 4280 | -5/Factory | Discovered new exit (range 11) 4284 | -5/Factory | Reached level 20 4347 | -5/Factory | Entered Upper Caves 4349 | -5/Upper Caves | Attracted the attention of an 0b10 checkpoint 4535 | -5/Upper Caves | Spotted B-75 Beast 4536 | -5/Upper Caves | Encountered a Warlord checkpoint 4538 | -5/Upper Caves | Learned Factory terminal intel 4568 | -5/Upper Caves | Destroyed B-75 Beast 4626 | -5/Upper Caves | Discovered new exit (range 19) 4640 | -5/Upper Caves | Identified exit to Upper Caves 4641 | -5/Upper Caves | Entered another Upper Caves area 4643 | -5/Upper Caves | Reached level 21 4731 | -5/Upper Caves | Found Alien Artifact 4739 | -5/Upper Caves | Discovered new exit (range 20) 4745 | -5/Upper Caves | Learned location of Warlord (-4) 4748 | -5/Upper Caves | Learned Factory emergency access door positions 4751 | -5/Upper Caves | Identified exit to Zhirov 4751 | -5/Upper Caves | Entered Zhirov 4751 | -5/Zhirov | Discovered new exit (range 3) 4757 | -5/Zhirov | Met Zhirov 4761 | -5/Zhirov | Learned location of Quarantine (-3) 4761 | -5/Zhirov | Learned location of Testing (-2) 4761 | -5/Zhirov | Learned location of Command (-1) 4765 | -5/Zhirov | Zhirov requested help retrieving the SGEMP Prototype 4770 | -5/Zhirov | Found Alien Artifact 4770 | -5/Zhirov | Identified Integrated Reactor 4770 | -5/Zhirov | Installed Integrated Reactor, increased core energy generation (+10) 4776 | -5/Zhirov | Found Alien Artifact 4806 | -5/Zhirov | Identified exit to Proximity Caves 4807 | -5/Zhirov | Entered Proximity Caves 4885 | -4/Proximity Caves | Spotted HN-KHR(f) 4886 | -4/Proximity Caves | Encountered a Master Thief 4897 | -4/Proximity Caves | Alien Artifact stolen by Master Thief 4898 | -4/Proximity Caves | Destroyed HN-KHR(f) 4928 | -4/Proximity Caves | Discovered new exit (range 24) 4941 | -4/Proximity Caves | Reached level 22 5035 | -4/Proximity Caves | Identified exit to Factory 5035 | -4/Proximity Caves | Entered Factory 5037 | -4/Factory | Loaded intel: 19 terminal locations 5037 | -4/Factory | Reached level 23 5041 | -4/Factory | Identified exit to Upper Caves 5051 | -4/Factory | Found Prototype Processor 5051 | -4/Factory | Identified Exp. Melee Analysis Suite 5120 | -4/Factory | Spotted B-86 Titan 5275 | -4/Factory | Fabricated Exp. Cesium-ion Thruster? 5283 | -4/Factory | Upgraded with Propulsion slot (x1) 5302 | -4/Factory | Discovered new exit (range 23) 5322 | -4/Factory | Identified exit to Research 5328 | -4/Factory | Entered Research 5330 | -3/Research | Reached level 24 5330 | -3/Research | Upgraded with Propulsion slot (x1) 5385 | -3/Research | Discovered new exit (range 12) 5388 | -3/Research | Identified exit to Armory 5388 | -3/Research | Identified exit to Quarantine 5393 | -3/Research | Found Prototype Processor 5394 | -3/Research | Entered Quarantine 5396 | -3/Quarantine | Reached level 25 5430 | -3/Quarantine | Found Alien Artifact 5430 | -3/Quarantine | Identified Subatomic Replicator 5432 | -3/Quarantine | Identified Exp. Signal Interpreter 5442 | -3/Quarantine | Found Alien Energy Cannon 5442 | -3/Quarantine | Identified Core Cannon 5462 | -3/Quarantine | Found Alien Artifact 5462 | -3/Quarantine | Identified Terrabomb 5462 | -3/Quarantine | Used Terrabomb 5471 | -3/Quarantine | Found Alien Slashing Weapon 5471 | -3/Quarantine | Identified Sigix Broadsword 5476 | -3/Quarantine | Discovered new exit (range 15) 5506 | -3/Quarantine | Core integrity fell below 50% 5587 | -3/Quarantine | Identified exit to Research 5594 | -3/Quarantine | Spotted Fortress 5603 | -3/Quarantine | Discovered new exit (range 16) 5605 | -3/Quarantine | Identified exit to Section 7 5605 | -3/Quarantine | Entered Section 7 5606 | -3/Section 7 | Spotted S7 Guard 5607 | -3/Section 7 | Reached level 26 5607 | -3/Section 7 | Reached level 27 5611 | -3/Section 7 | Found Alien Artifact 5611 | -3/Section 7 | Identified Core Membrane 5611 | -3/Section 7 | Installed Core Membrane, gained immunity to corruption 5624 | -3/Section 7 | Upgraded with Propulsion slot (x1) 5869 | -3/Section 7 | Scanned by Researcher 5885 | -3/Section 7 | Found Integrated Reactor 5885 | -3/Section 7 | Installed Integrated Reactor, increased core energy generation (+10) 5902 | -3/Section 7 | Found Integrated Reactor 5902 | -3/Section 7 | Installed Integrated Reactor, increased core energy generation (+10) 5920 | -3/Section 7 | Entered Research 5921 | -2/Research | Core integrity fell below 50% 5922 | -2/Research | Reached level 28 5984 | -2/Research | Incoming investigation squad redirected 6064 | -2/Research | Identified exit to Testing 6110 | -2/Research | Reached level 29 6110 | -2/Research | Intercept squad dispatched 6111 | -2/Research | Entered Testing 6126 | -2/Testing | Found Prototype Hackware 6126 | -2/Testing | Identified Exp. Hacking Suite 6149 | -2/Testing | Found Prototype Ballistic Cannon 6149 | -2/Testing | Identified Omega Cannon 6167 | -2/Testing | Identified exit to Access 6200 | -2/Testing | Reached level 30 6200 | -2/Testing | Intercept squad dispatched 6200 | -2/Testing | Upgraded with Propulsion slot (x1) 6203 | -2/Testing | Spotted Tracker 6203 | -2/Testing | Spotted Tracker 6207 | -2/Testing | Destroyed Tracker 6212 | -2/Testing | Spotted Combat Programmer 6213 | -2/Testing | Spotted Combat Programmer 6218 | -2/Testing | Entered Access 6219 | -1/Access | Core integrity fell below 50% 6220 | -1/Access | Reached level 31 6248 | -1/Access | Upgraded with Power slot (x1) 6257 | -1/Access | Spotted B-99 Colossus 6258 | -1/Access | Spotted B-99 Colossus 6277 | -1/Access | Discovered new exit (range 7) 6282 | -1/Access | Identified exit to Surface 6282 | *** | Escaped! Last Messages --------------- Slug penetrates Reinforced Barrier. Penetrated by Slug. Slug penetrates Reinforced Barrier. Penetrated by Slug. Slug penetrates Reinforced Barrier. Penetrated by Slug. Critical hit. Exp. Cesium-ion Thruster destroyed. Slug penetrates Sealed Heavy Doors. Penetrated by Slug. Slug penetrates Reinforced Barrier. Penetrated by Slug. Slug penetrates Reinforced Barrier. B-99 Colossus activates siege mode. EXIT=FOUND Slug penetrates Sealed Heavy Doors. Main Access Shell breached. EXIT=IDENTIFIED: SURFACE [Achievement: Winner's Signature] [Achievement: True Flier] Map ----- +----------------------------------------------------+ | ????????????????????????#??#?#?###??# #?#??# | | ????????????????????????# ????? ? ?## ##?#?? | | ???????????????????????????????? ?#?#k ##??#? | | ?????????????????????????? ?? ??+ ###?#? | | ????????????????????#?##?? ? ? ?######+##+#?#### | | ??????????????????????#?#???? ? ? ?? ??## | | ???????????????? ?????#???? # ? ? ?? ??#? | | ???????????????? ???????# ? ? ? ? ?### | | ?????????????? ? ? ###?#? ?? # ? ?## | | ????????????????? ?#?###?? ? # """""" ?#? | | ????????????+??#?### k ??? # """""" ? ?## | | ??????????? ? ? "? ? ? # """""" ### | | ??????????#??? ? ?? ??T + #? """""" #?# | | ??????????? ??####?# ? ? ? ? ? # """"?" ### | | ??????????????#?###?#####? ? # ### | | ????w??? ??? ?#??####?#?# ? # ? ### | | ??????????? ?##?#####?### ? # ? ? ### | | ???????#??? #########?#######?##########?##?##### | | ??k?????? ?? ######?#?##############?############# | | ??Y????????? #?####?"?#########################?## | | ????????? # ??""T"""" ? """" #####?### | | ?????????????"?"?"?"" """" ####?#### | | ??????? ??? ? " """""" """" ######### | | ??????? ??# ? ? " " """" BB | | ??????? ??# ? ?? ?" " "" " ""?" BB | | ???????###? ? " " @" " ""?" | | ??????#???? ? " " """" | | ???????????? ? " ?"""""" """ BB ###+##### | | ??????#??## ? ? " ? " "" BB # kk | | ??k???#?### ? ?" "" # = ! | | ??????#?#?? #######"##################### | | ??????????# ?##?####?##?#######?######### | | ?????????## ?###?#####??################# | | ???????? ?? ###??########?############### | | ??????? ? # ##########?################## | | ???????"? ? ?######???##########?###?##### | | ??????????? u###?################# #### | | ????????? ?? k ?? ? ##?#####+### | | ????????? ?? ? ? ? ######## ### | | ???????????? #####?####k#?######## ? ######## ### | | ??????????? ??### ? ? ??###? #########?#?# | | ?????????????#?### ? ? ? #???? #######?? ### | | ???????????? #?#?? ? ?#### ######### ### | | ??????????????###? ? ##### ######### ### | | ??????????????####? ? ? ##?## ####### ## | | ????????????????##? ? ? #####? k "" ## | | ????????????????## ? ? ##### ? T" ## | | ?????????????????? ? ? ##### ####### ## | | ?????????????????? ?? ??#### ?#?#######?## | | ???????????????????? ? ? ? ##?## ?######?####? | +----------------------------------------------------+ Best States ------------- Heat Dissipation 145 Energy Generation 139 Energy Capacity 1235 Matter Stores 300 Matter Capacity 300 Sight Range 22 Robot Scan Range 36 Terrain Scan Range 24 Terrain Scan Density 910 Power Amplification 40 Armor Coverage 225 Utility Shielding 90 Weapon Cycling 15 Phase Shifting 5 Evasion (%) 78 Targeting Accuracy 8 Particle Charging 20 Salvage Targeting 2 Offensive Hacking 36 Defensive Hacking 15 Item Schematics ----------------- Lance | -7/Factory | Hacked Combat Drone Bay | -7/Data Miner | Free Lgt. Regenerative Plating | -7/Data Miner | Free Cmb. Gravmag System | -7/Data Miner | Free Exp. Cesium-ion Thruster | -7/Data Miner | Free Exp. Transmission Jammer | -7/Data Miner | Free Cloaking Device | -7/Data Miner | Free Mni. Smartbomb Launcher | -7/Data Miner | Free Beamcaster | -6/Zion | Free Hvy. Riot Gun | -6/Zion | Free Battle Rifle | -6/Zion | Free Battle Cannon | -6/Zion | Free Phasing Sabre | -6/Zion | Free Assault Drone Bay | -5/Zhirov | Free Exp. Heat Sink | -5/Zhirov | Free Exp. Optical Array | -5/Zhirov | Free Imp. Arc Thrower | -5/Zhirov | Free Robot Schematics ------------------ S-27 Virus | -7/Data Miner | Free G-50 Soldier | -7/Data Miner | Free G-67 Veteran | -7/Data Miner | Free L-41 Fighter | -7/Data Miner | Free X-72 Disruptor | -7/Data Miner | Free H-66 Slayer | -7/Data Miner | Free I-36 Angel | -7/Data Miner | Free Fabricated ------------ Lance | x2 | -7/Factory Exp. Cesium-ion Thruster | x1 | -6/Factory Exp. Cesium-ion Thruster | x1 | -6/Factory Exp. Cesium-ion Thruster | x1 | -4/Factory Alien Tech Used ----------------- Core Expander Integrated Reactor Subatomic Replicator Core Cannon Terrabomb Sigix Broadsword Core Membrane Achievements -------------- Gun Specialist True Flier Winner's Signature Challenges ------------ None RPGLIKE | -11 -10 -10 -10 -9 -8 -7 -7 -7 -7 -6 -6 -6 -6 -6 -5 -5 -5 -5 -5 -4 -4 -3 -3 -3 -2 -2 -1 --------- Run | Scr Mat Min Exi Min Mat Fac Low Low Dat Pro Fac Low Zio Dee Pro Fac Upp Upp Zhi Pro Fac Res Qua Sec Res Tes Acc Levels Raised 30 | . . . 1 . 4 4 1 1 1 1 2 1 . . 1 2 . 1 . 1 1 1 1 2 2 1 1 XP Earned 48856 | 3000 540 750 350 905 6326 5646 925 2025 650 1891 3429 857 453 699 1200 2009 1006 469 316 1250 1524 2280 1930 2367 2405 1399 2255 XP Spent 47300 | 2600 . . 1850 . 5985 6050 1400 1400 . 1700 2800 . 1400 1785 1240 3000 . . . 1100 1700 3400 . 4400 1250 2600 1640 Upgrades 100 | 5 . . 4 . 18 18 2 1 . 1 3 . 1 17 4 10 . . . 1 1 5 . 4 1 1 3 Power Slot 2 | . . . . . . 1 . . . . . . . . . . . . . . . . . . . . 1 Propulsion Slot 8 | . . . 1 . 2 . . . . . . . 1 . . . . . . . 1 1 . 1 . 1 . Utility Slot 6 | . . . 1 . 1 1 . 1 . 1 1 . . . . . . . . . . . . . . . . Weapon Slot 2 | . . . . . 2 . . . . . . . . . . . . . . . . . . . . . . Core Integrity 17 | . . . . . . . . . . . . . . 17 . . . . . . . . . . . . . Heat Dissipation 20 | . . . . . 8 . . . . . . . . . . 10 . . . . . . . . . . 2 Energy Generation 3 | . . . 2 . . . 1 . . . . . . . . . . . . . . . . . . . . Mass Support 3 | 1 . . . . . . 1 . . . . . . . . . . . . 1 . . . . . . . Inventory Capacity 5 | 4 . . . . . . . . . . . . . . . . . . . . . . . . 1 . . Sensor Range 10 | . . . . . 2 8 . . . . . . . . . . . . . . . . . . . . . Terrain Scan Density 9 | . . . . . . 5 . . . . . . . . 4 . . . . . . . . . . . . Melee Accuracy 4 | . . . . . . . . . . . . . . . . . . . . . . 4 . . . . . Hack Attack % 4 | . . . . . 1 1 . . . . 1 . . . . . . . . . . . . 1 . . . Hack Defense % 3 | . . . . . . . . . . . 1 . . . . . . . . . . . . 2 . . . TH Damage % 4 | . . . . . 2 2 . . . . . . . . . . . . . . . . . . . . . Protomatter Created 1495 | . . 30 . 31 223 204 . 230 . . 240 . . . 9 100 205 46 . 133 . . . . . 44 . Integrity Restored 4333 | . . 90 . 93 874 460 . 413 . 42 663 270 . . 27 249 615 138 . 399 . . . . . . . Core 3921 | . . 90 . 93 755 349 . 392 . 42 514 258 . . 27 249 615 138 . 399 . . . . . . . Parts 412 | . . . . . 119 111 . 21 . . 149 12 . . . . . . . . . . . . . . . Protomatter Decayed 439 | . . . . . 172 43 . 76 . . 113 11 . . . 17 . . . 7 . . . . . . . Game ------ Seed AlphaSlugHammer Manual? 0 Play Time 02:17:27 Cumulative 211.1 hours Start 2020.09.09 @ 01:49:34 End 2020.09.09 @ 04:06:30 Sessions 1 Manual Loads 0 Difficulty Rogue Special Mode Winter2019/RPGLIKE Game No. 225 Rogue 225 Adventurer 0 Explorer 0 Win Type 0 Total 9 Types 7/0/2/0/0/0/0 Lore% 75 Gallery% 85 Achievement% 64 Wizard Run 0 Options --------- ASCII 0 Keyboard 1 Movement Numpad Keybinds 0 Fullscreen 1 Font 18/SmallcapsGlow Map View 76x50 Tactical HUD 1 Map Filters NONE Filters NONE Steam 1 RUN: cb65afb9-5380-4944-9309-d7da8b9373f7